[Event "Titled Tuesday Blitz June 27 Early 2023"]
[White "Bryakin, Mikhail"]
[Black "Yeritsyan, Hayk"]
[WhiteFideId "4165314"]
[BlackFideId "13307320"]
[WhiteElo "2765"]
[BlackElo "2449"]
[Result "1-0"]
[Round "1"]
[TimeControl "180+2"]
[Date "2023.06.27"]
[WhiteClock "0:00:06"]
[BlackClock "0:00:01"]
[Board "89"]

1. e4 {[%clk 0:02:52]}  c6 {[%clk 0:02:49]} 2. d4 {[%clk 0:02:50]}  d5 {[%clk 0:02:49]} 3. e5 {[%clk 0:02:51]}  c5 {[%clk 0:02:49]} 4. Nf3 {[%clk 0:02:50]}  Nc6 {[%clk 0:02:45]} 5. dxc5 {[%clk 0:02:45]}  Bg4 {[%clk 0:02:44]} 6. c3 {[%clk 0:02:41]}  e6 {[%clk 0:02:43]} 7. Be3 {[%clk 0:02:38]}  Bxf3 {[%clk 0:02:31]} 8. Qxf3 {[%clk 0:02:37]}  Nxe5 {[%clk 0:02:30]} 9. Qf4 {[%clk 0:02:31]}  Nc6 {[%clk 0:02:27]} 10. Bb5 {[%clk 0:02:18]}  Nf6 {[%clk 0:02:26]} 11. O-O {[%clk 0:02:13]}  Be7 {[%clk 0:02:24]} 12. b4 {[%clk 0:02:05]}  O-O {[%clk 0:02:19]} 13. Bxc6 {[%clk 0:01:56]}  bxc6 {[%clk 0:02:19]} 14. Nd2 {[%clk 0:01:57]}  Nd7 {[%clk 0:02:06]} 15. Qg3 {[%clk 0:01:49]}  Qb8 {[%clk 0:02:03]} 16. Nb3 {[%clk 0:01:32]}  Qxg3 {[%clk 0:02:00]} 17. hxg3 {[%clk 0:01:32]}  Bd8 {[%clk 0:01:38]} 18. a4 {[%clk 0:01:28]}  a6 {[%clk 0:01:32]} 19. f4 {[%clk 0:01:04]}  Rb8 {[%clk 0:01:29]} 20. Nd4 {[%clk 0:01:02]}  Rc8 {[%clk 0:01:24]} 21. Rfd1 {[%clk 0:00:49]}  Bf6 {[%clk 0:01:23]} 22. Rab1 {[%clk 0:00:45]}  Bxd4 {[%clk 0:01:13]} 23. Bxd4 {[%clk 0:00:36]}  Rb8 {[%clk 0:01:11]} 24. g4 {[%clk 0:00:34]}  Rb7 {[%clk 0:01:11]} 25. b5 {[%clk 0:00:24]}  axb5 {[%clk 0:01:07]} 26. axb5 {[%clk 0:00:24]}  Rxb5 {[%clk 0:00:40]} 27. Rxb5 {[%clk 0:00:23]}  cxb5 {[%clk 0:00:41]} 28. Rb1 {[%clk 0:00:19]}  Rc8 {[%clk 0:00:33]} 29. Rxb5 {[%clk 0:00:18]}  f6 {[%clk 0:00:33]} 30. g3 {[%clk 0:00:17]}  e5 {[%clk 0:00:31]} 31. Be3 {[%clk 0:00:18]}  Kf7 {[%clk 0:00:29]} 32. f5 {[%clk 0:00:18]}  h6 {[%clk 0:00:29]} 33. Kf1 {[%clk 0:00:18]}  Ke7 {[%clk 0:00:29]} 34. Ke2 {[%clk 0:00:19]}  Rc7 {[%clk 0:00:29]} 35. Kd3 {[%clk 0:00:19]}  Rc8 {[%clk 0:00:28]} 36. Ra5 {[%clk 0:00:19]}  Nb8 {[%clk 0:00:27]} 37. Ra7+ {[%clk 0:00:18]}  Kf8 {[%clk 0:00:28]} 38. Rb7 {[%clk 0:00:12]}  Nc6 {[%clk 0:00:26]} 39. Rd7 {[%clk 0:00:11]}  Ne7 {[%clk 0:00:22]} 40. Rd6 {[%clk 0:00:07]}  Ke8 {[%clk 0:00:20]} 41. Kc2 {[%clk 0:00:06]}  Rc6 {[%clk 0:00:21]} 42. Kb3 {[%clk 0:00:03]}  Rxd6 {[%clk 0:00:20]} 43. cxd6 {[%clk 0:00:04]}  Nc8 {[%clk 0:00:21]} 44. c4 {[%clk 0:00:03]}  dxc4+ {[%clk 0:00:17]} 45. Kxc4 {[%clk 0:00:04]}  Nxd6+ {[%clk 0:00:18]} 46. Kd5 {[%clk 0:00:04]}  Kd7 {[%clk 0:00:18]} 47. Bc5 {[%clk 0:00:05]}  Ne8 {[%clk 0:00:15]} 48. Bf8 {[%clk 0:00:05]}  Nc7+ {[%clk 0:00:13]} 49. Ke4 {[%clk 0:00:05]}  Ne8 {[%clk 0:00:12]} 50. Kd5 {[%clk 0:00:05]}  Nc7+ {[%clk 0:00:08]} 51. Kc5 {[%clk 0:00:06]}  Ne8 {[%clk 0:00:06]} 52. Kc4 {[%clk 0:00:05]}  Nd6+ {[%clk 0:00:05]} 53. Kd5 {[%clk 0:00:05]}  Ne8 {[%clk 0:00:05]} 54. Kc5 {[%clk 0:00:06]}  Nc7 {[%clk 0:00:05]} 55. Bxg7 {[%clk 0:00:06]}  Ne8 {[%clk 0:00:06]} 56. Bxh6 {[%clk 0:00:06]}  Ke7 {[%clk 0:00:06]} 57. Kd5 {[%clk 0:00:06]}  Kf7 {[%clk 0:00:06]} 58. g5 {[%clk 0:00:06]}  fxg5 {[%clk 0:00:06]} 59. Bxg5 {[%clk 0:00:07]}  e4 {[%clk 0:00:02]} 60. Kxe4 {[%clk 0:00:07]}  Ng7 {[%clk 0:00:03]} 61. g4 {[%clk 0:00:07]}  Ne8 {[%clk 0:00:04]} 62. Ke5 {[%clk 0:00:06]}  Ng7 {[%clk 0:00:04]} 63. Bd2 {[%clk 0:00:05]}  Ne8 {[%clk 0:00:04]} 64. g5 {[%clk 0:00:05]}  Nc7 {[%clk 0:00:04]} 65. Bc3 {[%clk 0:00:05]}  Nb5 {[%clk 0:00:04]} 66. Bb2 {[%clk 0:00:05]}  Nc7 {[%clk 0:00:03]} 67. g6+ {[%clk 0:00:06]}  Kg7 {[%clk 0:00:01]} 68. Kd6+ {[%clk 0:00:06]} 1-0


[Site "https://www.chess.com"]

[Event "Titled Tuesday Blitz June 27 Early 2023"]
[White "Miszler, Levente"]
[Black "Hayrapetyan, Hovik"]
[WhiteFideId "763276"]
[BlackFideId "13302639"]
[WhiteElo "2446"]
[BlackElo "2758"]
[Result "0-1"]
[Round "1"]
[TimeControl "180+2"]
[Date "2023.06.27"]
[WhiteClock "0:00:02"]
[BlackClock "0:00:39"]
[Board "92"]

1. Nf3 {[%clk 0:02:56]}  Nf6 {[%clk 0:02:58]} 2. c4 {[%clk 0:02:53]}  e6 {[%clk 0:02:58]} 3. g3 {[%clk 0:02:52]}  d5 {[%clk 0:02:59]} 4. Bg2 {[%clk 0:02:53]}  Be7 {[%clk 0:02:59]} 5. O-O {[%clk 0:02:53]}  O-O {[%clk 0:02:59]} 6. b3 {[%clk 0:02:51]}  d4 {[%clk 0:02:59]} 7. Bb2 {[%clk 0:02:51]}  c5 {[%clk 0:02:59]} 8. e3 {[%clk 0:02:50]}  Nc6 {[%clk 0:03:00]} 9. exd4 {[%clk 0:02:50]}  cxd4 {[%clk 0:03:01]} 10. Re1 {[%clk 0:02:50]}  a5 {[%clk 0:02:58]} 11. a3 {[%clk 0:02:49]}  Bc5 {[%clk 0:02:55]} 12. Ne5 {[%clk 0:02:48]}  Nxe5 {[%clk 0:02:55]} 13. Rxe5 {[%clk 0:02:49]}  Nd7 {[%clk 0:02:55]} 14. Re1 {[%clk 0:02:44]}  e5 {[%clk 0:02:53]} 15. d3 {[%clk 0:02:43]}  Bd6 {[%clk 0:02:53]} 16. Nd2 {[%clk 0:02:40]}  Nc5 {[%clk 0:02:52]} 17. Ne4 {[%clk 0:02:39]}  Nxe4 {[%clk 0:02:52]} 18. Bxe4 {[%clk 0:02:39]}  Be6 {[%clk 0:02:52]} 19. Qf3 {[%clk 0:02:31]}  Qd7 {[%clk 0:02:50]} 20. Bxb7 {[%clk 0:02:14]}  Rab8 {[%clk 0:02:49]} 21. Bc6 {[%clk 0:02:14]}  Qc7 {[%clk 0:02:44]} 22. b4 {[%clk 0:02:12]}  axb4 {[%clk 0:02:44]} 23. axb4 {[%clk 0:02:13]}  Bxb4 {[%clk 0:02:42]} 24. Reb1 {[%clk 0:02:12]}  Bc3 {[%clk 0:02:32]} 25. Bxc3 {[%clk 0:02:10]}  dxc3 {[%clk 0:02:32]} 26. Rc1 {[%clk 0:02:06]}  Rb3 {[%clk 0:02:28]} 27. Ba4 {[%clk 0:02:03]}  Rb2 {[%clk 0:02:16]} 28. Rxc3 {[%clk 0:02:03]}  Qa7 {[%clk 0:02:14]} 29. Rca3 {[%clk 0:01:44]}  Bh3 {[%clk 0:02:10]} 30. Bd1 {[%clk 0:01:15]}  Qd4 {[%clk 0:01:45]} 31. Ra8 {[%clk 0:01:14]}  h6 {[%clk 0:01:22]} 32. Rxf8+ {[%clk 0:00:38]}  Kxf8 {[%clk 0:01:23]} 33. Qa8+ {[%clk 0:00:34]}  Ke7 {[%clk 0:01:23]} 34. Ra7+ {[%clk 0:00:34]}  Bd7 {[%clk 0:01:15]} 35. Rxd7+ {[%clk 0:00:27]}  Kxd7 {[%clk 0:00:51]} 36. Bg4+ {[%clk 0:00:27]}  Ke7 {[%clk 0:00:43]} 37. Qa3+ {[%clk 0:00:27]}  Kf6 {[%clk 0:00:41]} 38. Qa6+ {[%clk 0:00:18]}  Kg5 {[%clk 0:00:41]} 39. h4+ {[%clk 0:00:13]}  Kxg4 {[%clk 0:00:41]} 40. Qc8+ {[%clk 0:00:12]}  f5 {[%clk 0:00:38]} 41. Qc6 {[%clk 0:00:02]}  Qxf2+ {[%clk 0:00:38]} 42. Kh1 {[%clk 0:00:02]}  Qh2# {[%clk 0:00:39]} 0-1


[Site "https://www.chess.com"]

[Event "Titled Tuesday Blitz June 27 Early 2023"]
[White "Boruchovsky, Avital"]
[Black "Mazurkiewicz, Michal"]
[WhiteFideId "2800055"]
[BlackFideId "1124943"]
[WhiteElo "2750"]
[BlackElo "2446"]
[Result "0-1"]
[Round "1"]
[TimeControl "180+2"]
[Date "2023.06.27"]
[WhiteClock "0:00:00"]
[BlackClock "0:00:13"]
[Board "93"]

1. d4 {[%clk 0:02:54]}  Nf6 {[%clk 0:03:00]} 2. Nc3 {[%clk 0:02:54]}  d5 {[%clk 0:03:00]} 3. Bg5 {[%clk 0:02:55]}  e6 {[%clk 0:02:57]} 4. e4 {[%clk 0:02:51]}  Be7 {[%clk 0:02:56]} 5. e5 {[%clk 0:02:50]}  Nfd7 {[%clk 0:02:56]} 6. Bxe7 {[%clk 0:02:49]}  Qxe7 {[%clk 0:02:57]} 7. f4 {[%clk 0:02:48]}  a6 {[%clk 0:02:56]} 8. Nf3 {[%clk 0:02:48]}  c5 {[%clk 0:02:56]} 9. Qd2 {[%clk 0:02:41]}  Nc6 {[%clk 0:02:56]} 10. O-O-O {[%clk 0:02:40]}  b5 {[%clk 0:02:53]} 11. g4 {[%clk 0:02:39]}  b4 {[%clk 0:02:52]} 12. Ne2 {[%clk 0:02:39]}  c4 {[%clk 0:02:52]} 13. c3 {[%clk 0:02:39]}  a5 {[%clk 0:02:52]} 14. f5 {[%clk 0:02:37]}  Nb6 {[%clk 0:02:39]} 15. Kb1 {[%clk 0:02:29]}  exf5 {[%clk 0:02:37]} 16. gxf5 {[%clk 0:02:25]}  Bxf5+ {[%clk 0:02:37]} 17. Ka1 {[%clk 0:02:25]}  Be4 {[%clk 0:02:25]} 18. Bg2 {[%clk 0:02:20]}  O-O {[%clk 0:02:19]} 19. Ng3 {[%clk 0:02:20]}  Bg6 {[%clk 0:02:18]} 20. h4 {[%clk 0:02:18]}  h5 {[%clk 0:02:03]} 21. Qg5 {[%clk 0:02:01]}  bxc3 {[%clk 0:02:00]} 22. bxc3 {[%clk 0:01:58]}  Qa3 {[%clk 0:01:59]} 23. Qc1 {[%clk 0:01:57]}  Qe7 {[%clk 0:01:54]} 24. Ng5 {[%clk 0:01:53]}  Rab8 {[%clk 0:01:43]} 25. Rhf1 {[%clk 0:01:51]}  Na4 {[%clk 0:01:41]} 26. Bxd5 {[%clk 0:01:51]}  Rb1+ {[%clk 0:01:35]} 27. Qxb1 {[%clk 0:01:48]}  Bxb1 {[%clk 0:01:34]} 28. Nxf7 {[%clk 0:00:17]}  Rxf7 {[%clk 0:00:29]} 29. Rxf7 {[%clk 0:00:15]}  Qa3 {[%clk 0:00:29]} 30. Rf5+ {[%clk 0:00:03]}  Kh8 {[%clk 0:00:13]} 31. Rxh5+ {[%clk 0:00:00]}  Bh7 {[%clk 0:00:13]} 0-1


[Site "https://www.chess.com"]

[Event "Titled Tuesday Blitz June 27 Early 2023"]
[White "Kislinsky, Alexey"]
[Black "Abdilkhair, Abilmansur"]
[WhiteFideId "14108801"]
[BlackFideId "13716417"]
[WhiteElo "2746"]
[BlackElo "2443"]
[Result "1-0"]
[Round "1"]
[TimeControl "180+2"]
[Date "2023.06.27"]
[WhiteClock "0:00:27"]
[BlackClock "0:00:00"]
[Board "95"]

1. e4 {[%clk 0:03:00]}  c6 {[%clk 0:02:58]} 2. d4 {[%clk 0:02:59]}  d5 {[%clk 0:02:59]} 3. exd5 {[%clk 0:02:59]}  cxd5 {[%clk 0:03:00]} 4. c4 {[%clk 0:02:59]}  Nf6 {[%clk 0:03:00]} 5. Nc3 {[%clk 0:02:59]}  Nc6 {[%clk 0:03:00]} 6. Nf3 {[%clk 0:02:59]}  e6 {[%clk 0:02:56]} 7. a3 {[%clk 0:02:58]}  Ne4 {[%clk 0:02:43]} 8. Bd3 {[%clk 0:02:55]}  Nxc3 {[%clk 0:02:42]} 9. bxc3 {[%clk 0:02:54]}  dxc4 {[%clk 0:02:39]} 10. Bxc4 {[%clk 0:02:54]}  Be7 {[%clk 0:02:39]} 11. O-O {[%clk 0:02:47]}  O-O {[%clk 0:02:38]} 12. Qd3 {[%clk 0:02:46]}  Na5 {[%clk 0:02:34]} 13. Ba2 {[%clk 0:02:45]}  b6 {[%clk 0:02:20]} 14. Re1 {[%clk 0:02:38]}  Bb7 {[%clk 0:02:18]} 15. Ne5 {[%clk 0:02:23]}  Rc8 {[%clk 0:02:13]} 16. Bd2 {[%clk 0:02:17]}  Bf6 {[%clk 0:02:08]} 17. Rad1 {[%clk 0:02:05]}  Nc6 {[%clk 0:02:04]} 18. Ng4 {[%clk 0:02:01]}  Bg5 {[%clk 0:02:01]} 19. Bb1 {[%clk 0:01:58]}  g6 {[%clk 0:01:52]} 20. f4 {[%clk 0:01:51]}  Bh4 {[%clk 0:01:48]} 21. Re2 {[%clk 0:01:44]}  h5 {[%clk 0:01:38]} 22. Ne5 {[%clk 0:01:20]}  Nxe5 {[%clk 0:01:38]} 23. fxe5 {[%clk 0:01:15]}  Bg5 {[%clk 0:01:37]} 24. Rf1 {[%clk 0:01:12]}  Bxd2 {[%clk 0:01:34]} 25. Rxd2 {[%clk 0:01:11]}  Qg5 {[%clk 0:01:31]} 26. Rdf2 {[%clk 0:01:10]}  Rc7 {[%clk 0:01:26]} 27. c4 {[%clk 0:00:59]}  Rd7 {[%clk 0:01:24]} 28. h4 {[%clk 0:00:50]}  Qxh4 {[%clk 0:00:56]} 29. d5 {[%clk 0:00:48]}  Qg5 {[%clk 0:00:43]} 30. Rf6 {[%clk 0:00:46]}  Qxe5 {[%clk 0:00:34]} 31. Qd2 {[%clk 0:00:30]}  exd5 {[%clk 0:00:17]} 32. Qh6 {[%clk 0:00:28]}  dxc4 {[%clk 0:00:00]} 33. Rxg6+ {[%clk 0:00:27]} 1-0


[Site "https://www.chess.com"]

[Event "Titled Tuesday Blitz June 27 Early 2023"]
[White "Titichoca Daza, Daniel"]
[Black "Xu, Yi"]
[WhiteFideId "3309550"]
[BlackFideId "8605564"]
[WhiteElo "2443"]
[BlackElo "2745"]
[Result "0-1"]
[Round "1"]
[TimeControl "180+2"]
[Date "2023.06.27"]
[WhiteClock "0:00:00"]
[BlackClock "0:00:21"]
[Board "96"]

1. e4 {[%clk 0:02:57]}  c5 {[%clk 0:02:59]} 2. Nf3 {[%clk 0:02:56]}  d6 {[%clk 0:02:58]} 3. d4 {[%clk 0:02:56]}  cxd4 {[%clk 0:02:58]} 4. Nxd4 {[%clk 0:02:57]}  Nf6 {[%clk 0:02:59]} 5. Nc3 {[%clk 0:02:56]}  a6 {[%clk 0:02:59]} 6. h3 {[%clk 0:02:51]}  e5 {[%clk 0:02:57]} 7. Nde2 {[%clk 0:02:50]}  h5 {[%clk 0:02:56]} 8. Bg5 {[%clk 0:02:49]}  Be6 {[%clk 0:02:56]} 9. g3 {[%clk 0:02:48]}  Nbd7 {[%clk 0:02:56]} 10. Bg2 {[%clk 0:02:49]}  b5 {[%clk 0:02:51]} 11. O-O {[%clk 0:02:45]}  Be7 {[%clk 0:02:49]} 12. Nd5 {[%clk 0:02:39]}  Nxd5 {[%clk 0:02:39]} 13. exd5 {[%clk 0:02:38]}  Bf5 {[%clk 0:02:38]} 14. Be3 {[%clk 0:02:35]}  Nf6 {[%clk 0:01:48]} 15. a4 {[%clk 0:02:17]}  bxa4 {[%clk 0:01:45]} 16. c4 {[%clk 0:02:06]}  Qc8 {[%clk 0:01:38]} 17. Kh2 {[%clk 0:01:36]}  Qxc4 {[%clk 0:01:36]} 18. Rxa4 {[%clk 0:01:35]}  Qc8 {[%clk 0:01:34]} 19. Qb3 {[%clk 0:01:28]}  Bc2 {[%clk 0:01:29]} 20. Qa3 {[%clk 0:01:23]}  Bxa4 {[%clk 0:01:28]} 21. Qxa4+ {[%clk 0:01:24]}  Qd7 {[%clk 0:01:27]} 22. Qd1 {[%clk 0:01:08]}  O-O {[%clk 0:01:20]} 23. Nc3 {[%clk 0:01:08]}  Rab8 {[%clk 0:01:19]} 24. Qe2 {[%clk 0:00:59]}  Rfc8 {[%clk 0:01:08]} 25. f4 {[%clk 0:00:52]}  Rb4 {[%clk 0:00:48]} 26. fxe5 {[%clk 0:00:40]}  dxe5 {[%clk 0:00:48]} 27. Bc1 {[%clk 0:00:41]}  Qd6 {[%clk 0:00:41]} 28. Bg5 {[%clk 0:00:36]}  Qb8 {[%clk 0:00:34]} 29. Bxf6 {[%clk 0:00:29]}  Bxf6 {[%clk 0:00:34]} 30. Ne4 {[%clk 0:00:22]}  Rxb2 {[%clk 0:00:25]} 31. Qxh5 {[%clk 0:00:21]}  Rcc2 {[%clk 0:00:21]} 32. Nxf6+ {[%clk 0:00:03]}  gxf6 {[%clk 0:00:21]} 33. Qg4+ {[%clk 0:00:00]}  Kf8 {[%clk 0:00:21]} 0-1


[Site "https://www.chess.com"]

[Event "Titled Tuesday Blitz June 27 Early 2023"]
[White "LangesNasenhaar"]
[Black "Klukin, Kirill"]
[BlackFideId "24199273"]
[WhiteElo "2440"]
[BlackElo "2743"]
[Result "1-0"]
[Round "1"]
[TimeControl "180+2"]
[Date "2023.06.27"]
[WhiteClock "0:00:08"]
[BlackClock "0:00:06"]
[Board "98"]

1. d4 {[%clk 0:02:59]}  Nf6 {[%clk 0:02:21]} 2. Nc3 {[%clk 0:02:59]}  d5 {[%clk 0:02:21]} 3. Bf4 {[%clk 0:02:59]}  a6 {[%clk 0:02:21]} 4. e3 {[%clk 0:02:59]}  e6 {[%clk 0:02:20]} 5. Nf3 {[%clk 0:02:59]}  c5 {[%clk 0:02:21]} 6. a3 {[%clk 0:02:55]}  Nc6 {[%clk 0:02:19]} 7. Ne5 {[%clk 0:02:54]}  Bd7 {[%clk 0:02:17]} 8. Bd3 {[%clk 0:02:49]}  b5 {[%clk 0:02:17]} 9. O-O {[%clk 0:02:42]}  Qb6 {[%clk 0:02:17]} 10. dxc5 {[%clk 0:02:37]}  Bxc5 {[%clk 0:02:17]} 11. e4 {[%clk 0:02:32]}  Bd4 {[%clk 0:02:10]} 12. Nxd7 {[%clk 0:02:29]}  Nxd7 {[%clk 0:01:26]} 13. exd5 {[%clk 0:02:29]}  Nce5 {[%clk 0:01:26]} 14. dxe6 {[%clk 0:02:16]}  Qxe6 {[%clk 0:01:26]} 15. Nxb5 {[%clk 0:01:56]}  axb5 {[%clk 0:01:19]} 16. Bxb5 {[%clk 0:01:55]}  Bxb2 {[%clk 0:01:06]} 17. Rb1 {[%clk 0:01:55]}  O-O {[%clk 0:00:53]} 18. Rxb2 {[%clk 0:01:50]}  Nc4 {[%clk 0:00:52]} 19. Rb4 {[%clk 0:01:28]}  Ndb6 {[%clk 0:00:51]} 20. a4 {[%clk 0:01:14]}  Qf6 {[%clk 0:00:43]} 21. Qf3 {[%clk 0:01:07]}  Ne5 {[%clk 0:00:29]} 22. Qg3 {[%clk 0:00:59]}  Ng6 {[%clk 0:00:27]} 23. Bg5 {[%clk 0:00:47]}  Qe6 {[%clk 0:00:26]} 24. h4 {[%clk 0:00:44]}  Nd5 {[%clk 0:00:25]} 25. Rg4 {[%clk 0:00:39]}  h5 {[%clk 0:00:25]} 26. Rd4 {[%clk 0:00:36]}  Nf6 {[%clk 0:00:21]} 27. Bc4 {[%clk 0:00:30]}  Qc6 {[%clk 0:00:13]} 28. Bxf6 {[%clk 0:00:28]}  Qxf6 {[%clk 0:00:14]} 29. Rd6 {[%clk 0:00:28]}  Qf4 {[%clk 0:00:08]} 30. Rxg6 {[%clk 0:00:21]}  Qxc4 {[%clk 0:00:08]} 31. Rxg7+ {[%clk 0:00:21]}  Kh8 {[%clk 0:00:09]} 32. Qg5 {[%clk 0:00:17]}  Ra6 {[%clk 0:00:05]} 33. Re1 {[%clk 0:00:12]}  Qxc2 {[%clk 0:00:05]} 34. Re5 {[%clk 0:00:11]}  Rg6 {[%clk 0:00:05]} 35. Rxg6 {[%clk 0:00:10]}  fxg6 {[%clk 0:00:06]} 36. Qe3 {[%clk 0:00:08]}  Qd1+ {[%clk 0:00:04]} 37. Kh2 {[%clk 0:00:09]}  Qxa4 {[%clk 0:00:04]} 38. Qh6+ {[%clk 0:00:08]}  Kg8 {[%clk 0:00:05]} 39. Qxg6+ {[%clk 0:00:08]}  Kh8 {[%clk 0:00:06]} 40. Rxh5# {[%clk 0:00:08]} 1-0


[Site "https://www.chess.com"]

[Event "Titled Tuesday Blitz June 27 Early 2023"]
[White "Lorparizangeneh, Shahin"]
[Black "Pandey Srishti"]
[WhiteFideId "12521604"]
[BlackFideId "35093290"]
[WhiteElo "2737"]
[BlackElo "2440"]
[Result "1-0"]
[Round "1"]
[TimeControl "180+2"]
[Date "2023.06.27"]
[WhiteClock "0:01:19"]
[BlackClock "0:00:08"]
[Board "99"]

1. e4 {[%clk 0:02:57]}  e5 {[%clk 0:02:59]} 2. Nf3 {[%clk 0:02:58]}  Nc6 {[%clk 0:02:58]} 3. Bb5 {[%clk 0:02:58]}  a6 {[%clk 0:02:57]} 4. Ba4 {[%clk 0:02:58]}  Nf6 {[%clk 0:02:53]} 5. O-O {[%clk 0:02:56]}  b5 {[%clk 0:02:53]} 6. Bb3 {[%clk 0:02:55]}  Bc5 {[%clk 0:02:53]} 7. d3 {[%clk 0:02:50]}  d6 {[%clk 0:02:50]} 8. a4 {[%clk 0:02:50]}  Rb8 {[%clk 0:02:50]} 9. c3 {[%clk 0:02:47]}  O-O {[%clk 0:02:42]} 10. Nbd2 {[%clk 0:02:42]}  Bb6 {[%clk 0:02:27]} 11. h3 {[%clk 0:02:38]}  Ne7 {[%clk 0:02:22]} 12. Re1 {[%clk 0:02:38]}  Ng6 {[%clk 0:02:22]} 13. Nf1 {[%clk 0:02:38]}  h6 {[%clk 0:01:41]} 14. Ng3 {[%clk 0:02:33]}  Be6 {[%clk 0:01:40]} 15. Bc2 {[%clk 0:02:28]}  Qd7 {[%clk 0:01:15]} 16. d4 {[%clk 0:02:24]}  Rfd8 {[%clk 0:00:18]} 17. Be3 {[%clk 0:02:20]}  exd4 {[%clk 0:00:15]} 18. Nxd4 {[%clk 0:02:15]}  c5 {[%clk 0:00:12]} 19. Ndf5 {[%clk 0:02:10]}  Bxf5 {[%clk 0:00:11]} 20. Nxf5 {[%clk 0:02:08]}  Ne7 {[%clk 0:00:12]} 21. axb5 {[%clk 0:02:07]}  Nxf5 {[%clk 0:00:11]} 22. exf5 {[%clk 0:02:06]}  axb5 {[%clk 0:00:12]} 23. Qf3 {[%clk 0:02:04]}  c4 {[%clk 0:00:12]} 24. Rad1 {[%clk 0:01:59]}  Bxe3 {[%clk 0:00:11]} 25. Rxe3 {[%clk 0:01:58]}  d5 {[%clk 0:00:12]} 26. Qf4 {[%clk 0:01:57]}  Qd6 {[%clk 0:00:12]} 27. Qd4 {[%clk 0:01:55]}  Qb6 {[%clk 0:00:12]} 28. Qh4 {[%clk 0:01:52]}  b4 {[%clk 0:00:11]} 29. Rg3 {[%clk 0:01:51]}  Nh7 {[%clk 0:00:11]} 30. Rd4 {[%clk 0:01:42]}  Qf6 {[%clk 0:00:11]} 31. Qh5 {[%clk 0:01:38]}  bxc3 {[%clk 0:00:12]} 32. bxc3 {[%clk 0:01:37]}  Rb2 {[%clk 0:00:12]} 33. Bd1 {[%clk 0:01:33]}  Ng5 {[%clk 0:00:09]} 34. Rdg4 {[%clk 0:01:30]}  Qxf5 {[%clk 0:00:09]} 35. h4 {[%clk 0:01:22]}  Nh3+ {[%clk 0:00:08]} 36. Kh2 {[%clk 0:01:19]}  Qxh5 {[%clk 0:00:07]} 37. Rxg7+ {[%clk 0:01:18]}  Kf8 {[%clk 0:00:08]} 38. Bxh5 {[%clk 0:01:18]}  Nxf2 {[%clk 0:00:08]} 39. Rxf7+ {[%clk 0:01:18]}  Ke8 {[%clk 0:00:08]} 40. Rg8# {[%clk 0:01:19]} 1-0


[Site "https://www.chess.com"]